[Event "Centenary THK University 2019"]
[Site "Ankara"]
[Date "2019.05.18"]
[Round "4"]
[White "Ozcan, Kadir Kutay"]
[Black "Gozubuyukoglu, Selami"]
[Result "1/2-1/2"]
[ECO "C36"]
[WhiteElo "1822"]
[BlackElo "1818"]
[Annotator "NA"]
[PlyCount "80"]
[EventDate "2019.05.17"]
[EventType "swiss"]
[EventCountry "TUR"]
[SourceTitle "playchess.com"]
[Source "ChessBase"]
[SourceQuality "1"]
[TimeControl "5400+30"]

1. e4 {[%emt 0:30:30]} e5 {[%emt 0:30:30]} 2. f4 {[%emt 0:00:30]} d5 {[%emt 0:00:30]} 3. exd5 {[%emt 0:00:00]} exf4 {[%emt 0:00:00]} 4. Nf3 {[%emt 0:00:00]} Nf6 {[%emt 0:00:00]} 5. Bb5+ {[%emt 0:03:30]} Bd7 {[%emt 0:02:30]} 6. Bc4 {[%emt 0:00:30]} Qe7+ {[%emt 0:01:30]} 7. Qe2 {[%emt 0:00:30]} Qxe2+ {[%emt 0:00:30]} 8. Kxe2 {[%emt 0:00:00]} Bd6 {[%emt 0:00:00]} 9. Re1 {[%emt 0:05:00]} O-O {[%emt 0:00:00]} 10. d4 {[%emt 0:01:30]} Bg4 {[%emt 0:05:30]} 11. Nc3 {[%emt 0:00:30]} a6 {[%emt 0:00:00]} 12. Kf2 {[%emt 0:02:30]} Nbd7 {[%emt 0:01:00]} 13. Ne5 {[%emt 0:00:30]} g5 {[%emt 0:02:30]} 14. h4 {[%emt 0:05:30]} h6 {[%emt 0:01:30]} 15. hxg5 {[%emt 0:00:30]} hxg5 {[%emt 0:00:00]} 16. g3 {[%emt 0:00:30]} Nxe5 {[%emt 0:13:00]} 17. Rxe5 {[%emt 0:00:30]} Bxe5 {[%emt 0:05:30]} 18. dxe5 {[%emt 0:04:30]} Nh5 {[%emt 0:03:30]} 19. gxf4 {[%emt 0:00:00]} gxf4 {[%emt 0:00:30]} 20. Bd2 {[%emt 0:00:00]} f5 {[%emt 0:01:30]} 21. d6+ {[%emt 0:00:30]} Kg7 {[%emt 0:01:30]} 22. dxc7 {[%emt 0:00:30]} Rfe8 {[%emt 0:01:30]} 23. Nd5 {[%emt 0:00:30]} b5 {[%emt 0:02:30]} 24. Bb3 {[%emt 0:00:30]} Rac8 {[%emt 0:03:30]} 25. a4 {[%emt 0:01:30]} Kg6 {[%emt 0:00:30]} 26. Re1 {[%emt 0:00:30]} Kg7 {[%emt 0:03:30]} 27. axb5 {[%emt 0:00:30]} axb5 {[%emt 0:00:00]} 28. Ra1 {[%emt 0:02:30]} Rh8 {[%emt 0:01:00]} 29. Ra7 {[%emt 0:00:30]} Ng3 {[%emt 0:00:30]} 30. Bxf4 {[%emt 0:01:30]} Ne4+ {[%emt 0:00:55]} 31. Ke3 {[%emt 0:00:30]} Rh1 {[%emt 0:04:54]} 32. e6 {[%emt 0:02:30]} Nf6 {[%emt 0:06:24]} 33. Nb6 {[%emt 0:02:30]} Re1+ {[%emt 0:01:47]} 34. Kf2 {[%emt 0:00:30]} Re2+ {[%emt 0:01:50]} 35. Kf1 {[%emt 0:00:30]} Ne4 {[%emt 0:01:31]} 36. Nxc8 {[%emt 0:00:30]} Bf3 {[%emt 0:01:54]} 37. Bc4 {[%emt 0:20:11]} bxc4 {[%emt 0:01:24]} 38. Ra3 {[%emt 0:00:02]} Rf2+ {[%emt 0:01:10]} 39. Ke1 {[%emt 0:00:30]} Re2+ {[%emt 0:00:28]} 40. Kf1 {[%emt 0:00:30]} Rf2+ {[%emt 0:00:05]} 1/2-1/2

[Event "Centenary THK University 2019"]
[Site "Ankara"]
[Date "2019.05.18"]
[Round "4"]
[White "Gok, Irfan"]
[Black "Yaprak, Ufuk"]
[Result "1-0"]
[ECO "C54"]
[WhiteElo "1739"]
[BlackElo "1492"]
[Annotator "NA RC"]
[PlyCount "130"]
[EventDate "2019.05.17"]
[EventType "swiss"]
[EventCountry "TUR"]
[SourceTitle "playchess.com"]
[Source "ChessBase"]
[SourceQuality "1"]
[TimeControl "5400+30"]

1. e4 {[%emt 0:30:30]} e5 {[%emt 0:30:30]} 2. Nf3 {[%emt 0:00:30]} Nc6 {[%emt 0:00:00]} 3. Bc4 {[%emt 0:00:00]} Bc5 {[%emt 0:00:00]} 4. c3 {[%emt 0:00:00]} Nf6 {[%emt 0:00:30]} 5. d4 {[%emt 0:00:00]} exd4 {[%emt 0:00:30]} 6. e5 {[%emt 0:00:00]} d5 {[%emt 0:00:30]} 7. Bb5 {[%emt 0:00:00]} Ne4 {[%emt 0:00:30]} 8. cxd4 {[%emt 0:00:00]} Bb4+ {[%emt 0:02:30]} 9. Bd2 {[%emt 0:00:00]} Nxd2 {[%emt 0:03:30]} 10. Nbxd2 {[%emt 0:00:00]} Qe7 {[%emt 0:08:30]} 11. O-O {[%emt 0:01:30]} O-O {[%emt 0:01:30]} 12. a3 {[%emt 0:01:30]} Ba5 {[%emt 0:00:30]} 13. Bxc6 {[%emt 0:01:30]} bxc6 {[%emt 0:00:30]} 14. b4 {[%emt 0:01:30]} Bb6 {[%emt 0:00:00]} 15. Qc2 {[%emt 0:00:30]} Bd7 {[%emt 0:01:00]} 16. Nb3 {[%emt 0:02:30]} a5 {[%emt 0:09:30]} 17. bxa5 {[%emt 0:00:30]} Bxa5 {[%emt 0:00:30]} 18. Qc5 {[%emt 0:03:30]} Qxc5 {[%emt 0:01:30]} 19. Nxc5 {[%emt 0:00:00]} Bg4 {[%emt 0:00:30]} 20. Rfc1 {[%emt 0:00:00]} Rfb8 {[%emt 0:04:30]} 21. h3 {[%emt 0:01:30]} Bf5 {[%emt 0:00:30]} 22. g4 {[%emt 0:00:30]} Bc8 {[%emt 0:01:30]} 23. Rc2 {[%emt 0:04:30]} h5 {[%emt 0:00:30]} 24. Nh2 {[%emt 0:02:30]} Rb6 {[%emt 0:07:30]} 25. Kg2 {[%emt 0:06:30]} g6 {[%emt 0:06:44]} 26. Rac1 {[%emt 0:02:30]} Rb5 {[%emt 0:00:40]} 27. Kg3 {[%emt 0:13:30]} Kg7 {[%emt 0:01:33]} 28. Nf3 {[%emt 0:03:30]} Bb6 {[%emt 0:00:50]} 29. a4 {[%emt 0:02:30]} Rb4 {[%emt 0:00:19]} 30. Ra2 {[%emt 0:03:55]} Ra5 {[%emt 0:01:27]} 31. Nd3 {[%emt 0:07:59]} Rb3 {[%emt 0:00:21]} 32. Nf4 {[%emt 0:01:32]} Bxd4 {[%emt 0:00:49]} 33. Kg2 {[%emt 0:02:20]} Bc5 {[%emt 0:03:24]} 34. gxh5 {[%emt 0:01:36]} gxh5 {[%emt 0:00:43]} 35. Nxh5+ {[%emt 0:00:13]} Kh6 {[%emt 0:01:09]} 36. Ng3 {[%emt 0:00:48]} Bxh3+ {[%emt 0:00:28]} 37. Kxh3 {[%emt 0:00:46]} Rxf3 {[%emt 0:00:03]} 38. Kg2 {[%emt 0:00:00]} Rf4 {[%emt 0:00:43]} 39. Rac2 {[%emt 0:00:12]} Bb6 {[%emt 0:00:54]} 40. Rh1+ {[%emt 0:03:15]} Kg5 {[%emt 0:01:21]} 41. Rh5+ {[%emt 0:00:45]} Kg4 {[%emt 0:00:13]} 42. Rh7 {[%emt 0:02:02]} Raxa4 {[%emt 0:01:11]} 43. f3+ {[%emt 0:02:57]} Kg5 {[%emt 0:00:30]} 44. Rxc6 {[%emt 0:00:30]} Ra2+ {[%emt 0:00:30]} 45. Kh3 {[%emt 0:00:30]} Rxf3 {[%emt 0:02:38]} 46. Rg7+ {[%emt 0:00:50]} Kf4 {[%emt 0:00:16]} 47. Rxf7+ {[%emt 0:00:44]} Ke3 {[%emt 0:00:03]} 48. Rc3+ {[%emt 0:00:01]} Kd4 {[%emt 0:00:47]} 49. Rcxf3 {[%emt 0:00:09]} Kxe5 {[%emt 0:00:11]} 50. R7f5+ {[%emt 0:00:30]} Kd6 {[%emt 0:00:24]} 51. Rf6+ {[%emt 0:00:14]} Kc5 {[%emt 0:00:23]} 52. Nf5 {[%emt 0:00:15]} Ra4 {[%emt 0:00:28]} 53. Rc3+ {[%emt 0:00:18]} Kb4 {[%emt 0:00:16]} 54. Rfc6 {[%emt 0:00:38]} Ra5 {[%emt 0:00:34]} 55. Rc1 {[%emt 0:00:27]} d4 {[%emt 0:01:35]} 56. R6c4+ {[%emt 0:00:06]} Kb3 {[%emt 0:00:00]} 57. Nxd4+ {[%emt 0:00:17]} Bxd4 {[%emt 0:00:45]} 58. Rxd4 {[%emt 0:00:02]} c5 {[%emt 0:00:16]} 59. Rdc4 {[%emt 0:00:04]} Ra7 {[%emt 0:00:51]} 60. Rxc5 {[%emt 0:00:02]} Ra4 {[%emt 0:00:27]} 61. R5c3+ {[%emt 0:00:37]} Kb2 {[%emt 0:00:08]} 62. R1c2+ {[%emt 0:00:09]} Kb1 {[%emt 0:00:02]} 63. Re2 {[%emt 0:00:21]} Rd4 {[%emt 0:00:17]} 64. Kg3 {[%emt 0:00:15]} Rd7 {[%emt 0:00:25]} 65. Rf3 {[%emt 0:00:41]} Rd1 {[%emt 0:00:30]} 1-0

[Event "Centenary THK University 2019"]
[Site "Ankara"]
[Date "2019.05.18"]
[Round "4"]
[White "Keskin, Suara"]
[Black "Sinay, Ahmet"]
[Result "1-0"]
[ECO "A48"]
[WhiteElo "1728"]
[BlackElo "1501"]
[Annotator "NA"]
[PlyCount "117"]
[EventDate "2019.05.17"]
[EventType "swiss"]
[EventCountry "TUR"]
[SourceTitle "playchess.com"]
[Source "ChessBase"]
[SourceQuality "1"]
[TimeControl "5400+30"]

1. Nf3 {[%emt 0:30:30]} Nf6 {[%emt 0:30:30]} 2. d4 {[%emt 0:00:30]} g6 {[%emt 0:00:30]} 3. Bf4 {[%emt 0:00:30]} Bg7 {[%emt 0:00:00]} 4. e3 {[%emt 0:00:00]} O-O {[%emt 0:00:00]} 5. Be2 {[%emt 0:00:00]} d6 {[%emt 0:00:30]} 6. O-O {[%emt 0:00:00]} c5 {[%emt 0:04:30]} 7. c3 {[%emt 0:01:00]} Nc6 {[%emt 0:01:30]} 8. Nbd2 {[%emt 0:00:30]} Bf5 {[%emt 0:02:30]} 9. h3 {[%emt 0:00:30]} h5 {[%emt 0:02:30]} 10. Ng5 {[%emt 0:01:30]} e5 {[%emt 0:02:30]} 11. dxe5 {[%emt 0:00:30]} dxe5 {[%emt 0:00:30]} 12. Bh2 {[%emt 0:00:30]} Bh6 {[%emt 0:01:30]} 13. Ngf3 {[%emt 0:00:30]} e4 {[%emt 0:05:30]} 14. Ne5 {[%emt 0:00:30]} Nxe5 {[%emt 0:06:30]} 15. Bxe5 {[%emt 0:00:30]} Re8 {[%emt 0:03:30]} 16. Bh2 {[%emt 0:00:30]} Nd5 {[%emt 0:01:30]} 17. Nc4 {[%emt 0:02:30]} Bf8 {[%emt 0:05:30]} 18. a4 {[%emt 0:02:30]} Be6 {[%emt 0:03:30]} 19. Kh1 {[%emt 0:04:30]} Qg5 {[%emt 0:04:30]} 20. Qc2 {[%emt 0:02:30]} Rad8 {[%emt 0:02:30]} 21. Rad1 {[%emt 0:02:30]} a6 {[%emt 0:04:49]} 22. a5 {[%emt 0:02:30]} f5 {[%emt 0:04:20]} 23. Qc1 {[%emt 0:04:30]} Qh6 {[%emt 0:01:55]} 24. Ne5 {[%emt 0:12:30]} Bd6 {[%emt 0:03:53]} 25. Bc4 {[%emt 0:03:30]} Bc7 {[%emt 0:00:31]} 26. Bxd5 {[%emt 0:07:30]} Bxd5 {[%emt 0:00:27]} 27. c4 {[%emt 0:00:30]} Bxe5 {[%emt 0:00:43]} 28. Rxd5 {[%emt 0:00:30]} Bxh2 {[%emt 0:00:41]} 29. Kxh2 {[%emt 0:00:30]} Qf8 {[%emt 0:00:13]} 30. Qd2 {[%emt 0:00:30]} Kg7 {[%emt 0:02:16]} 31. Rd1 {[%emt 0:00:30]} Rxd5 {[%emt 0:00:38]} 32. Qxd5 {[%emt 0:00:30]} Qe7 {[%emt 0:00:02]} 33. Qd7 {[%emt 0:03:00]} Kf7 {[%emt 0:01:01]} 34. Qd5+ {[%emt 0:01:36]} Kg7 {[%emt 0:00:59]} 35. g3 {[%emt 0:00:12]} h4 {[%emt 0:00:43]} 36. Qd7 {[%emt 0:02:59]} hxg3+ {[%emt 0:00:08]} 37. Kxg3 {[%emt 0:00:26]} Kf8 {[%emt 0:01:00]} 38. Rd5 {[%emt 0:01:54]} Qxd7 {[%emt 0:00:49]} 39. Rxd7 {[%emt 0:00:30]} Re7 {[%emt 0:00:00]} 40. Rd8+ {[%emt 0:00:19]} Re8 {[%emt 0:00:01]} 41. Rd6 {[%emt 0:01:01]} Kf7 {[%emt 0:00:59]} 42. Rd5 {[%emt 0:00:32]} Re7 {[%emt 0:01:08]} 43. Rxc5 {[%emt 0:00:40]} Rd7 {[%emt 0:00:04]} 44. Rd5 {[%emt 0:00:38]} Rxd5 {[%emt 0:00:08]} 45. cxd5 {[%emt 0:00:30]} Kf6 {[%emt 0:00:01]} 46. h4 {[%emt 0:01:55]} Ke5 {[%emt 0:00:30]} 47. d6 {[%emt 0:00:30]} Kxd6 {[%emt 0:00:30]} 48. Kf4 {[%emt 0:00:30]} Ke6 {[%emt 0:00:30]} 49. Kg5 {[%emt 0:00:30]} Kf7 {[%emt 0:00:30]} 50. h5 {[%emt 0:00:30]} gxh5 {[%emt 0:00:30]} 51. Kxf5 {[%emt 0:00:30]} Ke7 {[%emt 0:00:30]} 52. Kxe4 {[%emt 0:00:30]} Ke6 {[%emt 0:00:30]} 53. f4 {[%emt 0:00:30]} Kf6 {[%emt 0:00:30]} 54. Kf3 {[%emt 0:00:30]} Kg6 {[%emt 0:00:30]} 55. e4 {[%emt 0:00:30]} Kf6 {[%emt 0:00:30]} 56. Kg3 {[%emt 0:00:30]} Kg6 {[%emt 0:00:30]} 57. Kh4 {[%emt 0:00:30]} Kh6 {[%emt 0:00:00]} 58. f5 {[%emt 0:00:00]} Kg7 {[%emt 0:00:00]} 59. Kxh5 {[%emt 0:00:00]} 1-0

[Event "Centenary THK University 2019"]
[Site "Ankara"]
[Date "2019.05.18"]
[Round "4"]
[White "Genc, Mehmet Emin"]
[Black "Aliyev, Elnur"]
[Result "0-1"]
[ECO "B34"]
[WhiteElo "1664"]
[BlackElo "2146"]
[Annotator "NA"]
[PlyCount "52"]
[EventDate "2019.05.17"]
[EventType "swiss"]
[EventCountry "TUR"]
[SourceTitle "playchess.com"]
[Source "ChessBase"]
[SourceQuality "1"]
[TimeControl "5400+30"]

1. e4 {[%emt 0:30:30]} c5 {[%emt 0:30:30]} 2. Nf3 {[%emt 0:00:00]} Nc6 {[%emt 0:00:30]} 3. d4 {[%emt 0:00:00]} cxd4 {[%emt 0:00:30]} 4. Nxd4 {[%emt 0:00:00]} g6 {[%emt 0:00:30]} 5. Nc3 {[%emt 0:01:00]} Bg7 {[%emt 0:00:00]} 6. Be3 {[%emt 0:00:30]} Nf6 {[%emt 0:00:00]} 7. Nxc6 {[%emt 0:00:30]} bxc6 {[%emt 0:00:30]} 8. e5 {[%emt 0:00:30]} Ng8 {[%emt 0:00:00]} 9. Bd4 {[%emt 0:01:30]} Qa5 {[%emt 0:03:00]} 10. e6 {[%emt 0:00:30]} Nf6 {[%emt 0:00:30]} 11. exf7+ {[%emt 0:03:30]} Kxf7 {[%emt 0:00:30]} 12. Bd3 {[%emt 0:02:30]} e5 {[%emt 0:01:30]} 13. Be3 {[%emt 0:00:30]} d5 {[%emt 0:02:30]} 14. Bd2 {[%emt 0:00:30]} Qc7 {[%emt 0:00:30]} 15. Qe2 {[%emt 0:02:30]} Rb8 {[%emt 0:04:30]} 16. O-O-O {[%emt 0:01:30]} e4 {[%emt 0:01:30]} 17. Ba6 {[%emt 0:01:30]} Qb6 {[%emt 0:00:30]} 18. Bb5 {[%emt 0:03:30]} Ba6 {[%emt 0:05:30]} 19. a4 {[%emt 0:02:30]} cxb5 {[%emt 0:01:30]} 20. a5 {[%emt 0:00:30]} Qxa5 {[%emt 0:00:30]} 21. Qe3 {[%emt 0:01:30]} b4 {[%emt 0:04:30]} 22. Nb1 {[%emt 0:00:30]} Rhc8 {[%emt 0:00:30]} 23. Qxa7+ {[%emt 0:00:30]} Kg8 {[%emt 0:00:30]} 24. Bg5 {[%emt 0:02:30]} Rxc2+ {[%emt 0:01:30]} 25. Kxc2 {[%emt 0:00:30]} b3+ {[%emt 0:01:30]} 26. Kc1 {[%emt 0:01:30]} Rc8+ {[%emt 0:00:30]} 0-1

[Event "Centenary THK University 2019"]
[Site "Ankara"]
[Date "2019.05.18"]
[Round "4"]
[White "Gedik, Ahmet"]
[Black "Dalar, Yusuf"]
[Result "1-0"]
[ECO "B32"]
[WhiteElo "1438"]
[BlackElo "1499"]
[Annotator "NA"]
[PlyCount "77"]
[EventDate "2019.05.17"]
[EventType "swiss"]
[EventCountry "TUR"]
[SourceTitle "playchess.com"]
[Source "ChessBase"]
[SourceQuality "1"]
[TimeControl "5400+30"]

1. e4 {[%emt 0:30:30]} c5 {[%emt 0:32:30]} 2. Nf3 {[%emt 0:00:00]} Nc6 {[%emt 0:00:30]} 3. d4 {[%emt 0:00:00]} cxd4 {[%emt 0:00:00]} 4. Nxd4 {[%emt 0:00:30]} e5 {[%emt 0:00:00]} 5. Nb5 {[%emt 0:00:30]} d6 {[%emt 0:00:00]} 6. c4 {[%emt 0:00:00]} a6 {[%emt 0:00:00]} 7. N5a3 {[%emt 0:02:00]} Nf6 {[%emt 0:00:30]} 8. Nc3 {[%emt 0:00:00]} Be6 {[%emt 0:00:00]} 9. Be2 {[%emt 0:00:00]} Be7 {[%emt 0:00:00]} 10. Be3 {[%emt 0:00:30]} Qd7 {[%emt 0:02:30]} 11. O-O {[%emt 0:01:30]} Ng4 {[%emt 0:01:30]} 12. Bb6 {[%emt 0:03:30]} Bd8 {[%emt 0:00:30]} 13. Bxd8 {[%emt 0:01:30]} Rxd8 {[%emt 0:00:30]} 14. Nc2 {[%emt 0:00:30]} Nf6 {[%emt 0:00:00]} 15. Qd3 {[%emt 0:01:30]} O-O {[%emt 0:01:00]} 16. Rfd1 {[%emt 0:00:30]} Ne7 {[%emt 0:01:30]} 17. Ne3 {[%emt 0:00:30]} Ng6 {[%emt 0:00:30]} 18. g3 {[%emt 0:01:30]} Ne8 {[%emt 0:03:30]} 19. Ned5 {[%emt 0:08:30]} Bxd5 {[%emt 0:01:30]} 20. Nxd5 {[%emt 0:00:30]} f5 {[%emt 0:01:30]} 21. exf5 {[%emt 0:02:30]} Qxf5 {[%emt 0:00:30]} 22. Qxf5 {[%emt 0:01:30]} Rxf5 {[%emt 0:00:30]} 23. Bd3 {[%emt 0:00:30]} Rf7 {[%emt 0:00:30]} 24. Be4 {[%emt 0:01:30]} Ne7 {[%emt 0:01:30]} 25. Ne3 {[%emt 0:04:30]} Nc7 {[%emt 0:01:30]} 26. Nd5 {[%emt 0:00:30]} Ne8 {[%emt 0:00:30]} 27. Ne3 {[%emt 0:02:30]} Nc7 {[%emt 0:00:30]} 28. Bxb7 {[%emt 0:02:30]} Rb8 {[%emt 0:00:30]} 29. Bg2 {[%emt 0:00:30]} Rxb2 {[%emt 0:03:30]} 30. Rxd6 {[%emt 0:03:30]} Ne8 {[%emt 0:06:30]} 31. Re6 {[%emt 0:03:30]} Kf8 {[%emt 0:00:30]} 32. Rxa6 {[%emt 0:00:30]} g6 {[%emt 0:04:30]} 33. Rf1 {[%emt 0:05:30]} Nf5 {[%emt 0:00:30]} 34. Ng4 {[%emt 0:00:30]} Rc7 {[%emt 0:01:30]} 35. Nxe5 {[%emt 0:00:30]} Ke7 {[%emt 0:01:30]} 36. Re1 {[%emt 0:00:30]} Kf8 {[%emt 0:00:30]} 37. c5 {[%emt 0:01:30]} Neg7 {[%emt 0:01:30]} 38. Rf6+ {[%emt 0:00:30]} Kg8 {[%emt 0:00:30]} 39. Bd5+ {[%emt 0:00:30]} 1-0

[Event "Centenary THK University 2019"]
[Site "Ankara"]
[Date "2019.05.18"]
[Round "4"]
[White "Sonmez, Yusuf"]
[Black "Akoglanoglu, Murat Umut"]
[Result "1-0"]
[ECO "B23"]
[WhiteElo "1329"]
[BlackElo "1246"]
[Annotator "NA RC"]
[PlyCount "119"]
[EventDate "2019.05.17"]
[EventType "swiss"]
[EventCountry "TUR"]
[SourceTitle "playchess.com"]
[Source "ChessBase"]
[SourceQuality "1"]
[TimeControl "5400+30"]

1. e4 {[%emt 0:33:30]} c5 {[%emt 0:30:30]} 2. Nc3 {[%emt 0:00:30]} e6 {[%emt 0:00:30]} 3. g3 {[%emt 0:00:00]} a6 {[%emt 0:00:00]} 4. Bg2 {[%emt 0:00:00]} Qc7 {[%emt 0:00:00]} 5. d3 {[%emt 0:00:30]} Nf6 {[%emt 0:00:30]} 6. Nge2 {[%emt 0:00:00]} Be7 {[%emt 0:00:30]} 7. h3 {[%emt 0:00:00]} Nc6 {[%emt 0:00:30]} 8. Be3 {[%emt 0:00:30]} d6 {[%emt 0:01:30]} 9. O-O {[%emt 0:00:00]} b5 {[%emt 0:00:30]} 10. Qd2 {[%emt 0:00:00]} Bb7 {[%emt 0:01:30]} 11. f4 {[%emt 0:01:30]} O-O {[%emt 0:08:30]} 12. g4 {[%emt 0:00:00]} Rfd8 {[%emt 0:00:30]} 13. g5 {[%emt 0:00:00]} Ne8 {[%emt 0:01:30]} 14. f5 {[%emt 0:08:30]} Ne5 {[%emt 0:01:30]} 15. Ng3 {[%emt 0:04:30]} b4 {[%emt 0:04:30]} 16. Nce2 {[%emt 0:00:30]} c4 {[%emt 0:03:30]} 17. d4 {[%emt 0:02:30]} c3 {[%emt 0:00:30]} 18. bxc3 {[%emt 0:06:30]} Nc4 {[%emt 0:00:30]} 19. Qc1 {[%emt 0:00:00]} bxc3 {[%emt 0:02:30]} 20. Nh5 {[%emt 0:07:00]} d5 {[%emt 0:04:30]} 21. fxe6 {[%emt 0:08:30]} fxe6 {[%emt 0:01:30]} 22. Bf4 {[%emt 0:06:30]} Qa5 {[%emt 0:00:30]} 23. Qe1 {[%emt 0:03:10]} dxe4 {[%emt 0:05:30]} 24. Qf2 {[%emt 0:01:48]} Qf5 {[%emt 0:05:30]} 25. Neg3 {[%emt 0:03:10]} e3 {[%emt 0:00:30]} 26. Nxf5 {[%emt 0:00:47]} exf2+ {[%emt 0:00:30]} 27. Rxf2 {[%emt 0:00:16]} exf5 {[%emt 0:01:30]} 28. Bxb7 {[%emt 0:00:17]} Ra7 {[%emt 0:00:30]} 29. Rb1 {[%emt 0:01:41]} Ncd6 {[%emt 0:01:30]} 30. Bd5+ {[%emt 0:00:52]} Kh8 {[%emt 0:01:30]} 31. Re2 {[%emt 0:03:05]} Nb5 {[%emt 0:00:30]} 32. Rbe1 {[%emt 0:00:36]} Rxd5 {[%emt 0:03:46]} 33. Rxe7 {[%emt 0:00:30]} Rxe7 {[%emt 0:00:00]} 34. Rxe7 {[%emt 0:00:00]} Rd8 {[%emt 0:00:00]} 35. Be5 {[%emt 0:00:00]} Nbd6 {[%emt 0:01:37]} 36. Nxg7 {[%emt 0:00:33]} Kg8 {[%emt 0:02:43]} 37. Nh5 {[%emt 0:01:34]} Nf7 {[%emt 0:01:53]} 38. Rxe8+ {[%emt 0:01:11]} Rxe8 {[%emt 0:00:55]} 39. Nf6+ {[%emt 0:00:08]} Kf8 {[%emt 0:02:45]} 40. Nxe8 {[%emt 0:03:24]} Kxe8 {[%emt 0:00:37]} 41. h4 {[%emt 0:00:30]} Kd7 {[%emt 0:00:30]} 42. Kf2 {[%emt 0:00:30]} Ke6 {[%emt 0:00:30]} 43. Bf6 {[%emt 0:00:58]} Nd6 {[%emt 0:00:42]} 44. Ke3 {[%emt 0:00:30]} Ne4 {[%emt 0:00:30]} 45. Kd3 {[%emt 0:00:30]} Kd5 {[%emt 0:00:30]} 46. Be5 {[%emt 0:00:30]} Ke6 {[%emt 0:00:30]} 47. Bf4 {[%emt 0:01:15]} Kd5 {[%emt 0:00:30]} 48. h5 {[%emt 0:00:30]} Ke6 {[%emt 0:00:30]} 49. Kc4 {[%emt 0:00:30]} Kf7 {[%emt 0:00:30]} 50. Kd5 {[%emt 0:00:30]} Nd2 {[%emt 0:01:40]} 51. Kc5 {[%emt 0:01:13]} Ne4+ {[%emt 0:01:36]} 52. Kb6 {[%emt 0:00:24]} Ke6 {[%emt 0:00:44]} 53. Kxa6 {[%emt 0:00:23]} Kd5 {[%emt 0:00:13]} 54. Be3 {[%emt 0:01:04]} Nd6 {[%emt 0:00:28]} 55. g6 {[%emt 0:01:36]} hxg6 {[%emt 0:00:44]} 56. hxg6 {[%emt 0:00:01]} Ne8 {[%emt 0:00:39]} 57. Kb5 {[%emt 0:00:58]} Ke4 {[%emt 0:00:32]} 58. Bg1 {[%emt 0:00:21]} f4 {[%emt 0:00:40]} 59. Kc4 {[%emt 0:00:10]} Kf3 {[%emt 0:00:08]} 60. d5 {[%emt 0:01:13]} 1-0

[Event "Centenary THK University 2019"]
[Site "Ankara"]
[Date "2019.05.18"]
[Round "4"]
[White "Demir, Candost Aziz"]
[Black "Demir, Onder"]
[Result "0-1"]
[ECO "B23"]
[WhiteElo "1148"]
[BlackElo "1428"]
[Annotator "NA"]
[PlyCount "58"]
[EventDate "2019.05.17"]
[EventType "swiss"]
[EventCountry "TUR"]
[SourceTitle "playchess.com"]
[Source "ChessBase"]
[SourceQuality "1"]
[TimeControl "5400+30"]

1. e4 {[%emt 0:30:30]} c5 {[%emt 0:30:30]} 2. Nc3 {[%emt 0:00:30]} a6 {[%emt 0:00:30]} 3. f4 {[%emt 0:00:00]} b5 {[%emt 0:00:00]} 4. d3 {[%emt 0:00:00]} Bb7 {[%emt 0:00:00]} 5. Nf3 {[%emt 0:00:00]} e6 {[%emt 0:00:30]} 6. g3 {[%emt 0:01:00]} g6 {[%emt 0:01:30]} 7. Bg2 {[%emt 0:00:30]} Bg7 {[%emt 0:00:00]} 8. O-O {[%emt 0:00:30]} Ne7 {[%emt 0:00:00]} 9. Ne2 {[%emt 0:00:30]} O-O {[%emt 0:00:30]} 10. g4 {[%emt 0:01:30]} d5 {[%emt 0:00:30]} 11. e5 {[%emt 0:01:30]} Nd7 {[%emt 0:02:30]} 12. d4 {[%emt 0:01:30]} cxd4 {[%emt 0:00:30]} 13. Nfxd4 {[%emt 0:01:30]} Nc6 {[%emt 0:04:30]} 14. Nxc6 {[%emt 0:00:30]} Bxc6 {[%emt 0:01:30]} 15. Nd4 {[%emt 0:00:30]} Bb7 {[%emt 0:00:30]} 16. Qe2 {[%emt 0:01:30]} Nc5 {[%emt 0:04:30]} 17. f5 {[%emt 0:01:30]} exf5 {[%emt 0:01:30]} 18. gxf5 {[%emt 0:00:30]} Re8 {[%emt 0:01:30]} 19. f6 {[%emt 0:02:30]} Bh8 {[%emt 0:01:30]} 20. c3 {[%emt 0:17:30]} Ne4 {[%emt 0:00:30]} 21. Bxe4 {[%emt 0:00:30]} dxe4 {[%emt 0:00:00]} 22. e6 {[%emt 0:07:30]} Qd5 {[%emt 0:06:00]} 23. Rf5 {[%emt 0:07:30]} Qc4 {[%emt 0:14:30]} 24. Qf2 {[%emt 0:02:59]} e3 {[%emt 0:06:30]} 25. Qxe3 {[%emt 0:02:26]} Rxe6 {[%emt 0:03:02]} 26. Qg5 {[%emt 0:03:14]} Re1+ {[%emt 0:01:03]} 27. Kf2 {[%emt 0:00:46]} Qf1+ {[%emt 0:01:15]} 28. Kg3 {[%emt 0:00:01]} Qg2+ {[%emt 0:00:03]} 29. Kh4 {[%emt 0:00:30]} Qxh2+ {[%emt 0:00:05]} 0-1